[Event "FRA-ch Teams Top 16-B 2022"]
[Site "Chartres"]
[Date "2022.06.13"]
[Round "5.24"]
[White "Steil-Antoni, Fiona"]
[Black "Djidjeli, Sarah"]
[Result "1-0"]
[ECO "B31"]
[WhiteElo "2198"]
[BlackElo "2040"]
[Annotator "RC"]
[PlyCount "50"]
[EventDate "2022.06.09"]
[EventType "team-tourn"]
[EventCountry "FRA"]
[SourceTitle "playchess.com"]
[Source "ChessBase"]
[SourceQuality "1"]
[TimeControl "40/5400+30:1800+30"]

1. e4 {[%emt 0:02:38]} c5 {[%emt 0:00:05]} 2. Nf3 {[%emt 0:00:16]} Nc6 {[%emt 0:00:05]} 3. Bb5 {[%emt 0:00:10]} g6 {[%emt 0:00:05]} 4. Bxc6 {[%emt 0:00:24]} dxc6 {[%emt 0:00:05]} 5. d3 {[%emt 0:00:14]} Bg7 {[%emt 0:00:09]} 6. h3 {[%emt 0:00:10]} Nf6 {[%emt 0:00:14]} 7. Nc3 {[%emt 0:01:08]} b6 {[%emt 0:00:09]} 8. Be3 {[%emt 0:02:09]} O-O {[%emt 0:00:54]} 9. Qd2 {[%emt 0:00:54]} e5 {[%emt 0:00:30]} 10. Bh6 {[%emt 0:00:30]} Qd6 {[%emt 0:00:30]} 11. O-O {[%emt 0:00:30]} Nh5 {[%emt 0:00:30]} 12. Bxg7 Kxg7 13. Ne2 {[%emt 0:06:26]} h6 {[%emt 1:33:44]} 14. g4 {[%emt 0:04:50]} Nf6 {[%emt 0:00:00]} 15. Qc3 {[%emt 0:09:59]} Re8 {[%emt 0:00:00]} 16. Nh2 {[%emt 1:08:12]} b5 {[%emt 0:00:00]} 17. f4 {[%emt 0:00:00]} b4 {[%emt 0:00:00]} 18. Qe1 {[%emt 0:00:00]} exf4 {[%emt 0:00:00]} 19. Rxf4 {[%emt 0:00:00]} Be6 {[%emt 0:00:00]} 20. Qf2 {[%emt 0:00:00]} Nd7 {[%emt 0:00:00]} 21. Rf1 {[%emt 0:00:00]} Re7 {[%emt 0:00:00]} 22. Kh1 {[%emt 0:00:00]} Ne5 {[%emt 0:00:00]} 23. Qg3 {[%emt 0:00:00]} Rd8 {[%emt 0:00:00]} 24. b3 {[%emt 0:00:00]} a5 {[%emt 0:00:00]} 25. Rf6 {[%emt 0:00:00]} g5 {[%emt 0:00:00]} 1-0

[Event "FRA-ch Teams Top 16-B 2022"]
[Site "Chartres"]
[Date "2022.06.13"]
[Round "5.25"]
[White "Duboue, Peio"]
[Black "Gharamian, Tigran"]
[Result "1/2-1/2"]
[ECO "C11"]
[WhiteElo "2426"]
[BlackElo "2602"]
[Annotator "TA"]
[PlyCount "30"]
[EventDate "2022.06.09"]
[EventType "team-tourn"]
[EventCountry "FRA"]
[SourceTitle "playchess.com"]
[Source "ChessBase"]
[SourceQuality "1"]
[TimeControl "40/5400+30:1800+30"]

{[%evp 9,30,-23,-22,-25,-17,-24,-14,-31,-35,-41,-38,-49,-25,-32,-15,-25,-32,-22,0,0,0,0,0]} 1. e4 {[%emt 0:00:03]} e6 {[%emt 0:00:07]} 2. d4 {[%emt 0:00:05]} d5 {[%emt 0:00:06]} 3. Nc3 {[%emt 0:01:21]} Nf6 {[%emt 0:00:46]} 4. Bd3 {[%emt 0:03:33]} c5 {[%emt 0:02:31]} 5. exd5 {[%emt 0:00:07]} cxd4 {[%emt 0:00:22]} 6. Bb5+ {[%emt 0:00:08] C11: French: Classical System: 4 e5 and 4 Bg5 dxe4.} Bd7 {[%emt 0:04:15]} 7. Bxd7+ {[%emt 0:00:06]} ({But not} 7. dxe6 $2 Bxb5 8. Nxb5 Qa5+ 9. Bd2 Qxb5 $19) 7... Qxd7 {[%emt 0:00:10]} 8. dxe6 {[%emt 0:00:36]} (8. Qxd4 {keeps more tension.} Nc6 9. Qd2 exd5 10. Nf3) 8... fxe6 {[%emt 0:05:24]} 9. Nce2 {[%emt 0:00:09]} Nc6 {[%emt 0:01:45]} 10. Nf3 {[%emt 0:00:43][%cal Re2d4]} e5 {[%emt 0:21:23]} 11. O-O $1 {[%emt 0:01:52]} O-O-O {[%emt 0:11:58] [#]} 12. Ng3 $146 {[%emt 0:01:33]} ({Predecessor:} 12. c3 d3 13. Ng3 e4 14. Nd2 Re8 15. Re1 e3 16. Rxe3 Rxe3 17. fxe3 h5 18. Nge4 Nxe4 19. Nxe4 {0-1 (36) Puertas Covarrubias,F (1895)-Roy Laguens,A ICCF email 2011}) 12... e4 {[%emt 0:01:01]} 13. Ng5 {[%emt 0:02:54]} e3 {[%emt 0:12:51] The position is equal.} 14. fxe3 {[%emt 0:02:01]} Bc5 {[%emt 0:00:05]} 15. exd4 {[%emt 0:24:54]} Qxd4+ {[%emt 0:00:59] Weighted Error Value: White=0.03 (flawless) /Black=0.03 (flawless)} 1/2-1/2

[Event "FRA-ch Teams Top 16-B 2022"]
[Site "Chartres"]
[Date "2022.06.13"]
[Round "5.26"]
[White "Vocaturo, Daniele"]
[Black "Di Nicolantonio, Lucas"]
[Result "1-0"]
[ECO "B15"]
[WhiteElo "2608"]
[BlackElo "2399"]
[Annotator "TA"]
[PlyCount "105"]
[EventDate "2022.06.09"]
[EventType "team-tourn"]
[EventCountry "FRA"]
[SourceTitle "playchess.com"]
[Source "ChessBase"]
[SourceQuality "1"]
[TimeControl "40/5400+30:1800+30"]

{[%evp 14,105,35,25,28,33,46,32,30,28,32,18,22,17,23,18,24,22,21,6,28,0,0,0,45,51,46,59,50,33,35,32,135,128,112,50,75,81,139,138,147,52,46,52,51,0,44,28,90,-23,26,0,0,-65,34,43,378,0,0,-22,0,0,0,0,32,32,32,0,0,0,0,0,807,712,778,845,770,736,853,705,1322,1998,1033,2095,2602,1551,2181,2677,1943,2372,2053,2016,1574,1173]} 1. e4 {[%emt 0:00:36]} c6 {[%emt 0:00:15]} 2. d4 {[%emt 0:00:48]} d5 {[%emt 0:00:06]} 3. Nc3 {[%emt 0:00:21]} dxe4 {[%emt 0:00:13]} 4. Nxe4 {[%emt 0:00:13]} Nf6 {[%emt 0:00:58]} 5. Nxf6+ {[%emt 0:01:07]} exf6 {[%emt 0:00:08]} 6. c3 {[%emt 0:01:05]} Bd6 {[%emt 0:00:44]} 7. Bd3 {[%emt 0:00:16]} O-O {[%emt 0:00:24]} 8. Qc2 {[%emt 0:00:17] Active counter play!} Re8+ {[%emt 0:00:58] B15: Caro-Kann: 3 Nc3: 3...g6 and 3...dxe4 4 Nxe4 Nf6 5 Nxf6+ exf6.} 9. Ne2 {[%emt 0:00:27]} h5 {[%emt 0:00:52]} 10. O-O {[%emt 0:02:33]} h4 {[%emt 0:01:33] White is slightly better.} 11. h3 {[%emt 0:00:12]} Nd7 {[%emt 0:01:19]} 12. Bd2 {[%emt 0:01:41]} Nf8 {[%emt 0:01:24]} 13. Rae1 {[%emt 0:01:00]} Bc7 {[%emt 0:02:30]} 14. f4 {[%emt 0:01:29][%cal Bf2f4,Bf4f5][%mdl 32]} g6 {[%emt 0:09:33]} 15. f5 {[%emt 0:05:22][%cal Rf5g6]} g5 {[%emt 0:00:38] [#]} 16. c4 $146 {[%emt 0:00:13][%cal Bc3c4,Bc4c5][%mdl 32]} ({Predecessor:} 16. Qd1 Qd6 17. Nf4 Bd7 18. Qg4 Nh7 19. Nh5 Qf8 20. Be3 Kh8 21. Re2 Rad8 22. Rfe1 {1-0 (57) Hilwerda,J (2209)-Alavi Moghaddam,S (2445) Paracin 2021}) 16... b6 {[%emt 0:24:25]} 17. b4 {[%emt 0:14:26] Prevents c5.} a5 {[%emt 0:05:00]} 18. bxa5 {[%emt 0:01:45]} bxa5 {[%emt 0:00:24]} 19. c5 {[%emt 0:01:55]} Ba6 {[%emt 0:04:45]} 20. Bxa6 {[%emt 0:01:20]} Rxa6 {[%emt 0:00:06]} 21. Qc4 {[%emt 0:00:16]} Ra8 {[%emt 0:01:20]} 22. Nc3 {[%emt 0:00:37]} Bg3 {[%emt 0:23:05]} (22... Rb8 $14) 23. Rxe8 $16 {[%emt 0:05:26]} Qxe8 {[%emt 0:00:04]} 24. Qd3 {[%emt 0:00:25]} (24. Qe2 $1 $16) 24... Qd7 {[%emt 0:06:44]} 25. d5 {[%emt 0:05:18]} Be5 {[%emt 0:04:38]} (25... Re8 $142) 26. d6 {[%emt 0:00:57]} Qa7 {[%emt 0:00:14] [#]} 27. Ne4 {[%emt 0:02:07]} (27. Na4 $1 $16) 27... Nd7 $14 {[%emt 0:00:13]} 28. Be3 {[%emt 0:01:29]} Rb8 {[%emt 0:00:57]} 29. Rc1 {[%emt 0:06:20]} (29. a3 $14) 29... Kg7 {[%emt 0:03:37]} 30. Nd2 {[%emt 0:00:47]} Rb5 {[%emt 0:01:22]} (30... Rb2 $11) 31. Nb3 {[%emt 0:02:07]} ({White should try} 31. Kh1 $16) 31... Qb7 {[%emt 0:01:24]} (31... a4 {was preferrable.} 32. Nd2 Nxc5) 32. Nd4 {[%emt 0:02:48]} (32. Qd2 $5 {[%cal Rb3a5]}) 32... Rb2 {[%emt 0:01:52]} (32... Nxc5 33. Qd1 Bxd4 34. Qxd4 $16) 33. Qe4 {[%emt 0:03:03]} (33. a3 $11) 33... Bxd4 {[%emt 0:02:24]} (33... Rxa2 $15 34. Kh1 (34. Nxc6 $2 Re2 $19) 34... Qb2 35. Nxc6 Nxc5) 34. Bxd4 {[%emt 0:00:16] Qg4 is the strong threat.} Rxa2 $2 {[%emt 0:00:06][%mdl 8192]} (34... Qb4 $1 $14) 35. Qe3 $2 {[%emt 0:02:06]} (35. Qg4 $18 {Qxg5+ would kill now.} Kh6 36. Re1) 35... Kh7 $11 {[%emt 0:01:44]} 36. Qf3 {[%emt 0:12:58]} Kh6 {[%emt 0:01:31] Against Qh5+} (36... Qb4 $5 {[%cal Rb4d4]} 37. Kh1 Kg7 $17) 37. Qd3 {[%emt 0:02:07] Threatens to win with Qc4.} Qb4 {[%emt 0:00:34]} 38. Rb1 {[%emt 0:00:46][%cal Bc1b1,Bb1b4,Bb4a4,Ba4a5][%mdl 32]} Rd2 {[%emt 0:00:52]} (38... Nxc5 $2 39. Rxb4 axb4 40. Bxc5 $18) 39. Rxb4 {[%emt 0:00:20]} Rxd3 $14 {[%emt 0:00:04][%mdl 4096] Endgame KRB-KRN} 40. Ra4 {[%emt 0:00:07]} (40. Rb7 $5 {[%cal Rb7d7]}) 40... Kg7 {[%emt 0:00:51]} 41. Kf2 {[%emt 0:31:41]} Rd2+ {[%emt 0:15:49]} 42. Kf3 {[%emt 0:00:00]} Ne5+ $2 {[%emt 0:02:41][%mdl 8192] [#]} (42... Nf8 $11) 43. Ke3 $1 $18 {[%emt 0:00:00] White is clearly winning.} ({Not} 43. Bxe5 fxe5 44. Rxa5 Kf6 $11) 43... Rd1 {[%emt 0:09:04]} 44. Ke2 {[%emt 0:00:00]} Rb1 {[%emt 0:00:05]} 45. Rxa5 {[%emt 0:00:00]} Rb4 {[%emt 0:00:13]} 46. Bxe5 {[%emt 0:00:00] KRB-KR} Re4+ {[%emt 0:03:01]} 47. Kd3 {[%emt 0:00:00]} Rxe5 {[%emt 0:00:05] KR-KR} 48. Ra4 {[%emt 0:00:00] Hoping for d7.} Kf8 {[%emt 0:01:11]} 49. Ra8+ {[%emt 0:00:00]} Kg7 {[%emt 0:00:04]} 50. Kc4 {[%emt 0:00:00] And now d7 would win.} Re4+ {[%emt 0:00:32]} 51. Kc3 {[%emt 0:00:00]} Re3+ {[%emt 0:00:25]} 52. Kb4 {[%emt 0:00:00] Black must now prevent d7.} Rd3 {[%emt 0:01:49]} 53. Rc8 {[%emt 0:00:00] Weighted Error Value: White=0.30/Black=0.41} 1-0

[Event "FRA-ch Teams Top 16-B 2022"]
[Site "Chartres"]
[Date "2022.06.13"]
[Round "5.27"]
[White "Eugene, Floryan"]
[Black "Hamdouchi, Hicham"]
[Result "1/2-1/2"]
[ECO "B52"]
[WhiteElo "2370"]
[BlackElo "2536"]
[Annotator "RC"]
[PlyCount "103"]
[EventDate "2022.06.09"]
[EventType "team-tourn"]
[EventCountry "FRA"]
[SourceTitle "playchess.com"]
[Source "ChessBase"]
[SourceQuality "1"]
[TimeControl "40/5400+30:1800+30"]

1. e4 {[%emt 0:00:04]} c5 {[%emt 0:01:33]} 2. Nf3 {[%emt 0:00:11]} d6 {[%emt 0:00:21]} 3. Bb5+ {[%emt 0:00:09]} Bd7 {[%emt 0:00:17]} 4. Bxd7+ {[%emt 0:00:17]} Qxd7 {[%emt 0:00:08]} 5. O-O {[%emt 0:01:06]} Nf6 {[%emt 0:02:39]} 6. Re1 {[%emt 0:01:20]} Nc6 {[%emt 0:00:47]} 7. c3 {[%emt 0:00:20]} e6 {[%emt 0:03:35]} 8. d4 {[%emt 0:00:14]} cxd4 {[%emt 0:00:26]} 9. cxd4 {[%emt 0:00:04]} d5 {[%emt 0:00:09]} 10. e5 {[%emt 0:00:03]} Ne4 {[%emt 0:00:10]} 11. a3 {[%emt 0:00:05]} Be7 {[%emt 0:00:51]} 12. Qd3 {[%emt 0:00:06]} Rc8 {[%emt 0:01:46]} 13. Nbd2 {[%emt 0:00:54]} Nxd2 {[%emt 0:00:48]} 14. Bxd2 {[%emt 0:00:06]} O-O {[%emt 0:03:13]} 15. h4 {[%emt 0:07:23]} h6 {[%emt 0:07:23]} 16. g3 {[%emt 0:07:29]} f5 {[%emt 0:04:04]} 17. exf6 {[%emt 0:18:21]} Rxf6 {[%emt 0:00:37]} 18. Ne5 {[%emt 0:06:40]} Qe8 {[%emt 0:13:21]} 19. Rac1 {[%emt 0:04:52]} Bd6 {[%emt 0:02:03]} 20. Nxc6 {[%emt 0:03:05]} bxc6 {[%emt 0:01:43]} 21. Bb4 {[%emt 0:15:47]} Bxb4 {[%emt 0:04:21]} 22. axb4 {[%emt 0:00:04]} Rb8 {[%emt 0:00:55]} 23. Qd2 {[%emt 0:05:22]} Rf7 {[%emt 0:11:15]} 24. Re5 {[%emt 0:04:45]} Rfb7 {[%emt 0:02:44]} 25. Qe3 {[%emt 0:00:36]} Re7 {[%emt 0:01:40]} 26. Qc3 {[%emt 0:00:42]} Rb6 {[%emt 0:03:17]} 27. Rce1 {[%emt 0:02:13]} Qd7 {[%emt 0:00:33]} 28. R1e3 {[%emt 0:01:07]} Qd6 {[%emt 0:00:45]} 29. Qc5 {[%emt 0:05:11]} Qxc5 {[%emt 0:03:00]} 30. bxc5 {[%emt 0:00:09]} Rxb2 {[%emt 0:00:22]} 31. Rxe6 {[%emt 0:00:04]} Rxe6 {[%emt 0:08:20]} 32. Rxe6 {[%emt 0:00:05]} Rd2 {[%emt 0:00:36]} 33. Rxc6 {[%emt 0:00:41]} Rxd4 {[%emt 0:00:07]} 34. Rd6 {[%emt 0:02:07]} Kh7 {[%emt 0:00:18]} 35. Kg2 {[%emt 0:04:02]} a5 {[%emt 0:01:42]} 36. c6 {[%emt 0:00:27]} a4 {[%emt 0:00:43]} 37. c7 {[%emt 0:00:09]} Rc4 {[%emt 0:00:08]} 38. Rxd5 {[%emt 0:00:07]} Rxc7 {[%emt 0:00:08]} 39. Ra5 {[%emt 0:00:03]} Rc4 {[%emt 0:00:10]} 40. h5 {[%emt 0:01:16]} g5 {[%emt 0:03:38]} 41. hxg6+ {[%emt 0:32:30]} Kxg6 {[%emt 0:30:15]} 42. Kh3 {[%emt 0:00:38]} Rb4 {[%emt 0:07:23]} 43. f4 {[%emt 0:01:25]} Rc4 {[%emt 0:00:08]} 44. Kg4 {[%emt 0:00:48]} Rb4 {[%emt 0:00:19]} 45. Ra6+ {[%emt 0:00:30]} Kg7 {[%emt 0:00:09]} 46. Kf5 {[%emt 0:05:03]} Rb5+ {[%emt 0:00:00]} 47. Kg4 {[%emt 0:00:00]} Rb4 {[%emt 0:00:00]} 48. Kh4 {[%emt 0:00:00]} Rc4 {[%emt 0:00:00]} 49. Kh5 {[%emt 0:00:00]} Rc3 {[%emt 0:00:00]} 50. Ra7+ {[%emt 0:00:00]} Kf6 {[%emt 0:00:00]} 51. Ra6+ {[%emt 0:00:00]} Kg7 {[%emt 0:00:00]} 52. Ra7+ {[%emt 0:00:00]} 1/2-1/2

[Event "FRA-ch Teams Top 16-B 2022"]
[Site "Chartres"]
[Date "2022.06.13"]
[Round "5.28"]
[White "Tregubov, Pavel V."]
[Black "Real, Thibault"]
[Result "1-0"]
[ECO "B52"]
[WhiteElo "2541"]
[BlackElo "2262"]
[Annotator "TA"]
[PlyCount "59"]
[EventDate "2022.06.09"]
[EventType "team-tourn"]
[EventCountry "FRA"]
[SourceTitle "playchess.com"]
[Source "ChessBase"]
[SourceQuality "1"]
[TimeControl "40/5400+30:1800+30"]

{[%evp 9,59,15,8,14,15,7,19,6,14,0,0,0,13,19,10,20,11,3,35,32,121,91,141,141,240,206,672,675,674,673,661,664,656,652,640,633,622,614,1391,1383,1294,1292,29991,29992,29992,29993,29993,1156,29994,29995,29995,325]} 1. e4 {[%emt 0:00:04]} c5 {[%emt 0:00:08]} 2. Nf3 {[%emt 0:00:06]} d6 {[%emt 0:00:06]} 3. Bb5+ {[%emt 0:00:08]} Bd7 {[%emt 0:00:12]} 4. Bxd7+ {[%emt 0:00:11]} Qxd7 {[%emt 0:00:09]} 5. d4 {[%emt 0:00:17]} cxd4 {[%emt 0:00:22]} 6. Qxd4 {[%emt 0:00:12] B52: Sicilian: Moscow Variation with 3...Bd7.} Nc6 {[%emt 0:00:28]} 7. Qd3 {[%emt 0:00:33]} g6 {[%emt 0:03:59]} 8. O-O {[%emt 0:00:43] The position is equal.} Bg7 {[%emt 0:00:27]} 9. c4 {[%emt 0:00:16]} Rc8 {[%emt 0:03:44]} 10. Nc3 {[%emt 0:01:59]} Na5 {[%emt 1:25:55]} (10... Nb4 $5 {[%cal Rb4d3]} 11. Qe2 Qc7 $11) 11. Nd2 $1 {[%emt 0:04:46] [#]} Qc6 $146 {[%emt 0:00:00][%cal Ra5c4]} ({Predecessor:} 11... Nf6 12. b3 O-O 13. Bb2 a6 14. Rab1 e6 15. Rfd1 Rfd8 16. Na4 Qc7 17. Bd4 Nd7 18. Bxg7 Kxg7 19. Rbc1 {½-½ (19) Predojevic,B (2621)-Jankovic,A (2548) Prijedor 2015}) 12. Nb5 {[%emt 1:27:15]} Qb6 {[%emt 0:00:00]} 13. Rb1 {[%emt 0:00:00]} a6 {[%emt 0:00:00]} 14. Nc3 {[%emt 0:00:00]} Qc6 {[%emt 0:02:00] Black is on the road to losing.} (14... Nc6 $14) 15. b3 $16 {[%emt 0:00:00]} b5 {[%emt 0:00:00] [#]} ({Black should try} 15... e6) 16. Nd5 $1 {[%emt 0:00:00]} bxc4 {[%emt 0:00:00]} (16... Qb7 $16 17. Bb2 Bxb2) 17. bxc4 $18 {[%emt 0:00:00][%cal Oc4c5]} Nxc4 $2 {[%emt 0:00:00]} (17... Nf6 18. Bb2 Nb7 19. Bxf6 Bxf6) 18. Nxc4 {[%emt 0:00:00]} Qxc4 {[%emt 0:00:00]} 19. Qxc4 {[%emt 0:00:00]} Rxc4 {[%emt 0:00:00]} 20. Rb8+ {[%emt 0:00:00]} Kd7 {[%emt 0:00:00]} 21. Nb6+ {[%emt 0:00:00]} Kc7 {[%emt 0:00:00]} 22. Rc8+ {[%emt 0:00:00]} ({And not} 22. Nxc4 Kxb8 23. Rd1 Nh6 $11) 22... Kxb6 {[%emt 0:00:00]} 23. Rxc4 {[%emt 0:00:00] [#] Intending Be3+ and mate.} Nf6 {[%emt 0:00:00]} 24. Be3+ {[%emt 0:00:00]} Kb5 {[%emt 0:00:00]} 25. Rfc1 {[%emt 0:00:00] Threatening mate with a4+.} Ng4 {[%emt 0:00:00]} 26. a4+ {[%emt 0:00:00]} Ka5 {[%emt 0:00:00]} 27. Bd2+ {[%emt 0:00:00]} Kb6 {[%emt 0:00:00]} 28. h3 {[%emt 0:00:00]} (28. Rc7 $142 Bc3 29. R1xc3 Ne5 30. a5+ Kb5 31. Rb7+ Ka4 32. Bc1 Nc4 33. Rxc4+ Kxa5 34. Bd2#) 28... Ne5 {[%emt 0:00:00]} 29. Rb1+ {[%emt 0:00:00]} Ka7 {[%emt 0:00:00]} 30. Rc7+ {[%emt 0:00:00] Weighted Error Value: White=0.03 (flawless) /Black=1.07} 1-0

[Event "FRA-ch Teams Top 16-B 2022"]
[Site "Chartres"]
[Date "2022.06.13"]
[Round "5.29"]
[White "Hutois, Mickael"]
[Black "Delorme, Axel"]
[Result "0-1"]
[ECO "C68"]
[WhiteElo "2238"]
[BlackElo "2461"]
[Annotator "TA"]
[PlyCount "79"]
[EventDate "2022.06.09"]
[EventType "team-tourn"]
[EventCountry "FRA"]
[SourceTitle "playchess.com"]
[Source "ChessBase"]
[SourceQuality "1"]
[TimeControl "40/5400+30:1800+30"]

{[%evp 9,79,13,28,0,22,-13,-8,-89,-77,-93,-79,-130,-131,-135,-37,-38,-37,-39,-39,-38,-29,-35,-25,-37,-25,-24,0,0,0,0,0,0,0,0,0,0,13,-34,0,0,0,0,0,0,0,0,0,0,0,-57,-62,-98,-99,-84,0,-183,-181,-158,-76,-84,-79,-529,-452,-1362,-1028,-2002,-1818,-2039,-1752,-2277,-2103,-1511]} 1. e4 {[%emt 0:00:02]} e5 {[%emt 0:00:05]} 2. Nf3 {[%emt 0:00:04]} Nc6 {[%emt 0:00:06]} 3. Bb5 {[%emt 0:00:03]} a6 {[%emt 0:01:18]} 4. Bxc6 {[%emt 0:00:06]} dxc6 {[%emt 0:00:27][%cal Bd7c6,Bc6c5,Bc5b4][%mdl 32]} 5. O-O {[%emt 0:00:10]} Qf6 {[%emt 0:07:08]} 6. d3 {[%emt 0:00:50] C68: Ruy Lopez: Exchange Variation, sidelines.} Ne7 {[%emt 0:07:54]} 7. Nbd2 {[%emt 0:01:35]} c5 {[%emt 0:05:47] [#]} 8. b4 $146 {[%emt 0:11:36]} (8. h3 $11) ({Predecessor:} 8. Nc4 Nc6 9. Ne3 Bd6 10. Nd5 Qd8 11. Nd2 O-O 12. Nc4 Be6 13. Nce3 Re8 14. Kh1 {0-1 (59) Mok,T (2373)-Morovic Fernandez,I (2554) Baku 2016}) 8... cxb4 $17 {[%emt 0:01:12]} 9. Bb2 {[%emt 0:00:13]} Nc6 {[%emt 0:05:08]} 10. Nxe5 {[%emt 0:04:20]} Nxe5 {[%emt 0:01:34]} 11. Nc4 {[%emt 0:00:08] [#]} Nf3+ {[%emt 0:10:42][%mdl 512]} 12. Qxf3 $15 {[%emt 0:08:16]} Qxf3 {[%emt 0:00:14]} 13. gxf3 {[%emt 0:00:04]} Be6 {[%emt 0:08:59]} 14. Ne3 {[%emt 0:02:21]} c5 {[%emt 0:00:15]} 15. f4 {[%emt 0:01:33]} f6 {[%emt 0:00:11]} 16. f5 {[%emt 0:09:49]} Bf7 {[%emt 0:00:06]} 17. f4 {[%emt 0:01:24]} O-O-O {[%emt 0:01:21][%cal Oc5c4]} (17... c4 $5) 18. Kf2 {[%emt 0:02:15]} c4 {[%emt 0:06:07]} 19. Nxc4 {[%emt 0:04:07]} Bxc4 {[%emt 0:00:40]} 20. dxc4 {[%emt 0:00:04]} Rd2+ {[%emt 0:00:19]} 21. Ke3 {[%emt 0:00:14]} Rxh2 {[%emt 0:07:13] White must now prevent ...Bc5+.} 22. Bd4 {[%emt 0:00:37] Against Bc5} Rxc2 {[%emt 0:06:30]} 23. Kd3 {[%emt 0:02:21]} (23. e5 $11 {is more appropriate.}) 23... Rg2 {[%emt 0:05:43]} (23... Rh2 $5 {[%cal Rh2h3]}) 24. Rg1 {[%emt 0:03:45]} Rxg1 {[%emt 0:00:12]} 25. Rxg1 $11 {[%emt 0:00:05][%mdl 4096] Endgame KRB-KRB} h5 {[%emt 0:00:41]} 26. e5 {[%emt 0:01:06]} fxe5 {[%emt 0:01:00]} 27. fxe5 {[%emt 0:04:22] Threatens to win with e6.} h4 {[%emt 0:23:08]} 28. e6 {[%emt 0:03:41] Hoping for f6.} h3 {[%emt 0:00:00]} 29. Ke4 {[%emt 0:05:29]} (29. c5 $11) 29... Rh4+ $15 {[%emt 0:00:00]} 30. Kd5 {[%emt 0:00:47]} Rh5 {[%emt 0:00:00]} 31. Ke4 {[%emt 0:03:46]} Rh4+ {[%emt 0:00:00]} (31... Kd8 $17) 32. Ke5 $2 {[%emt 0:04:46]} (32. Kd5 $11 {and White is okay.}) 32... Be7 $19 {[%emt 0:00:00]} ({And not} 32... h2 33. Rh1 $17) 33. Kd5 {[%emt 0:01:10]} Rh7 {[%emt 0:00:00]} (33... h2 $142 {( -> ...Rxd4+)} 34. Rh1 Bf6) 34. Be5 $17 {[%emt 0:15:06]} a5 {[%emt 0:00:00] Strongly threatening ...a4.} 35. f6 $2 {[%emt 0:04:49][%mdl 8192] This costs White the game.} (35. Rh1 $17) 35... Bxf6 $19 {[%emt 0:00:00] aiming for ...Rh5. Black is clearly winning.} 36. Bxf6 {[%emt 0:00:19] [#]} (36. Bh2 $142) 36... h2 $1 {[%emt 0:01:50]} (36... gxf6 37. Kd6 b6 38. e7 Rxe7 39. Kxe7 $18) 37. e7 {[%emt 0:00:19]} Kd7 {[%emt 0:00:21]} 38. e8=Q+ {[%emt 0:06:38]} Kxe8 {[%emt 0:00:06]} 39. Re1+ {[%emt 0:00:02]} Kf7 {[%emt 0:00:55]} 40. Kd4 {[%emt 0:02:08] Weighted Error Value: White=0.89/Black=0.12 (very precise)} 0-1